bitfinex-derivatives/quotes_BTCF0:USTF0_20251111
["timestamp","ask_amount","ask_price","bid_price","bid_amount"]
[1762823345109,0.40525177,106190.0,106180.0,0.58664258]
[1762823346008,0.40525177,106190.0,106180.0,0.73224258]
[1762823346211,0.00014177,106190.0,106180.0,1.160211]
[1762823346415,0.02204177,106190.0,106180.0,1.160211]
[1762823346614,0.04445177,106190.0,106180.0,1.160211]
[1762823347006,0.49945567,106190.0,106180.0,0.799411]
[1762823347611,0.49945567,106190.0,106180.0,0.653811]
[1762823347816,0.40525177,106190.0,106180.0,0.653811]
[1762823348010,0.04445177,106190.0,106180.0,0.653811]
[1762823348522,0.04445177,106190.0,106180.0,0.665891]
[1762823348706,0.00014177,106190.0,106180.0,0.665891]
[1762823352724,0.40525177,106190.0,106180.0,0.665891]
[1762823352926,0.04445177,106190.0,106180.0,0.665891]
[1762823353418,0.04445177,106190.0,106180.0,0.811491]
[1762823354920,0.02204177,106190.0,106180.0,0.811491]
[1762823355321,0.49945567,106190.0,106180.0,0.665891]
[1762823356833,0.51266567,106190.0,106180.0,0.5716783]
[1762823357126,0.51266567,106190.0,106180.0,0.36267803]
[1762823357533,0.51266567,106190.0,106180.0,0.09641073]
[1762823357827,0.49945567,106190.0,106180.0,0.307251]
[1762823358420,0.40525177,106190.0,106180.0,0.307251]
[1762823359320,0.49945567,106190.0,106180.0,0.307251]
[1762823360929,0.36094177,106190.0,106180.0,0.307251]
[1762823361632,0.00014177,106190.0,106180.0,0.307251]
[1762823361832,0.00014177,106190.0,106180.0,0.668051]
[1762823362037,0.00014177,106190.0,106180.0,0.307251]
[1762823362228,0.00014177,106190.0,106180.0,0.68489546]
[1762823363035,0.00014177,106190.0,106180.0,0.32409546]
[1762823364336,0.00014177,106190.0,106180.0,0.68489546]
[1762823364836,0.00014177,106190.0,106180.0,0.32409546]
[1762823365034,0.36094177,106190.0,106180.0,0.32409546]
[1762823365739,0.47732567,106190.0,106180.0,0.32409546]
[1762823366041,0.50063567,106190.0,106180.0,0.32409546]
[1762823366740,0.04563177,106190.0,106180.0,0.32409546]
[1762823367544,0.00014177,106190.0,106180.0,0.32409546]
[1762823368340,0.02232177,106190.0,106180.0,0.32409546]
[1762823369039,0.00014177,106190.0,106180.0,0.32409546]
[1762823369545,0.00014177,106190.0,106180.0,0.68489546]
[1762823370737,0.02232177,106190.0,106180.0,0.32409546]
[1762823371139,0.00014177,106190.0,106180.0,0.32409546]
[1762823373447,0.00014177,106190.0,106180.0,0.68489546]
[1762823373633,0.00014177,106190.0,106180.0,0.7187668]
[1762823374048,0.00014177,106190.0,106180.0,0.60088258]
[1762823374255,0.00014177,106190.0,106180.0,0.24008258]
[1762823374445,0.00014177,106190.0,106180.0,0.60088258]
[1762823374752,0.00014177,106190.0,106180.0,0.7187668]
[1762823375249,0.00014177,106190.0,106180.0,0.24008258]
[1762823375450,0.14683567,106190.0,106180.0,0.24108258]
[1762823375648,0.52084567,106190.0,106180.0,0.23107064]
[1762823375848,0.52084567,106190.0,106180.0,0.13164879]
[1762823376147,0.52084567,106190.0,106180.0,0.23966149]
[1762823376347,0.52084567,106190.0,106180.0,0.14544879]
[1762823376546,0.52084567,106190.0,106180.0,0.23095064]
[1762823376952,0.52084567,106190.0,106180.0,0.14544879]
[1762823377857,0.52084567,106190.0,106180.0,0.13164879]
[1762823378155,0.52084567,106190.0,106180.0,0.1148211]
[1762823381556,0.52084567,106190.0,106180.0,0.2090338]
[1762823382150,0.52084567,106190.0,106180.0,0.2228338]
[1762823382559,0.52084567,106190.0,106180.0,0.30833565]
[1762823382757,0.52084567,106190.0,106180.0,0.1148211]
[1762823382964,0.52084567,106190.0,106180.0,0.0705711]
[1762823384259,0.60634752,106190.0,106180.0,0.06837307]
[1762823384664,0.60634752,106190.0,106180.0,0.001]
[1762823384863,0.52084567,106190.0,106180.0,0.001]
[1762823386865,0.58161081,106190.0,106180.0,0.001]
[1762823387057,0.52084567,106190.0,106180.0,0.14120073]
[1762823387562,0.52084567,106190.0,106180.0,0.20196587]
[1762823387963,0.52084567,106190.0,106180.0,0.14120073]
[1762823388361,0.52084567,106190.0,106180.0,0.04698803]
[1762823389059,0.52084567,106190.0,106180.0,0.12155317]
[1762823389256,0.52084567,106190.0,106180.0,0.06078803]
[1762823389562,0.52084567,106190.0,106180.0,0.04698803]
[1762823389966,0.52084567,106190.0,106180.0,0.14120073]
[1762823390166,0.52084567,106190.0,106180.0,0.04698803]
[1762823391661,0.86719567,106190.0,106180.0,0.28201894]
[1762823391861,0.86719567,106190.0,106180.0,0.34278408]
[1762823391862,0.50763567,106190.0,106180.0,0.34278408]
[1762823393171,0.50763567,106190.0,106180.0,0.28201894]
[1762823395471,0.41343177,106190.0,106180.0,0.34278408]
[1762823395772,0.36794177,106190.0,106180.0,0.34278408]
[1762823395974,0.50486567,106190.0,106180.0,0.27541101]
[1762823398171,0.50486567,106190.0,106180.0,0.35961177]
[1762823398671,0.41066177,106190.0,106180.0,0.27541101]
[1762823400675,0.50486567,106190.0,106180.0,0.27541101]
[1762823400876,0.41066177,106190.0,106180.0,0.27541101]
[1762823401175,0.36794177,106190.0,106180.0,0.27541101]
[1762823401481,0.00714177,106190.0,106180.0,0.35961177]
[1762823401683,0.03004177,106190.0,106180.0,0.35961177]
[1762823402273,0.03004177,106190.0,106180.0,0.23808149]
[1762823402476,0.14546567,106190.0,106180.0,0.35961177]
[1762823402678,0.50626567,106190.0,106180.0,0.35961177]
[1762823402982,0.41206177,106190.0,106180.0,0.35961177]
[1762823403281,0.05126177,106190.0,106180.0,0.35961177]
[1762823405074,0.03004177,106190.0,106180.0,0.35961177]
[1762823405274,0.05126177,106190.0,106180.0,0.35961177]
[1762823405571,0.41206177,106190.0,106180.0,0.35961177]
[1762823405968,0.50626567,106190.0,106180.0,0.35961177]
[1762823406379,0.05126177,106190.0,106180.0,0.35961177]
[1762823406682,0.41206177,106190.0,106180.0,0.35961177]
[1762823407383,0.50626567,106190.0,106180.0,0.23808149]
[1762823407582,0.50626567,106190.0,106180.0,0.35961177]
[1762823407880,0.39084177,106190.0,106180.0,0.35961177]
[1762823408083,0.05126177,106190.0,106180.0,0.35961177]
[1762823408286,0.41206177,106190.0,106180.0,0.35961177]
[1762823408779,0.05126177,106190.0,106180.0,0.35961177]
[1762823408980,0.50626567,106190.0,106180.0,0.35961177]
[1762823411588,0.05126177,106190.0,106180.0,0.35961177]
[1762823412192,0.41206177,106190.0,106180.0,0.35961177]
[1762823412694,0.50626567,106190.0,106180.0,0.35961177]
[1762823414091,0.14546567,106190.0,106180.0,0.35961177]
[1762823414275,0.50626567,106190.0,106180.0,0.35961177]
[1762823414982,0.51737567,106190.0,106180.0,0.28616663]
[1762823415295,0.51737567,106190.0,106180.0,0.19195393]
[1762823415492,0.51737567,106190.0,106180.0,0.28616663]
[1762823417686,0.51737567,106190.0,106180.0,0.19195393]
[1762823417890,0.51737567,106190.0,106180.0,0.114299]
[1762823419096,0.51737567,106190.0,106180.0,0.26927684]
[1762823419593,0.42317177,106190.0,106180.0,0.26927684]
[1762823419794,0.50626567,106190.0,106180.0,0.27543101]
[1762823420597,0.50626567,106190.0,106180.0,0.34276297]
[1762823420797,0.50626567,106190.0,106180.0,0.27543101]
[1762823422190,0.36794177,106190.0,106180.0,0.27543101]
[1762823422493,0.36794177,106190.0,106180.0,0.35963177]
[1762823422892,0.38974177,106190.0,106180.0,0.35963177]
[1762823423284,0.57689081,106190.0,106180.0,0.08520076]
[1762823423896,0.57689081,106190.0,106180.0,0.06836706]
[1762823424289,0.1475427,106180.0,106170.0,0.06736706]
[1762823424587,0.56910784,106180.0,106170.0,0.06736706]
[1762823424989,0.92858784,106180.0,106170.0,0.06736706]
[1762823425694,0.93558784,106180.0,106170.0,0.06836706]
[1762823426284,0.93558784,106180.0,106170.0,0.001]
[1762823426499,0.93558784,106180.0,106170.0,0.00319803]
[1762823426689,0.8748227,106180.0,106170.0,0.20226477]
[1762823426901,0.8748227,106180.0,106170.0,0.28233183]
[1762823427090,0.8748227,106180.0,106170.0,0.18811023]
[1762823427398,0.5153427,106180.0,106170.0,0.28233183]
[1762823428790,0.41067,106180.0,106170.0,0.28233183]
[1762823429297,0.5048827,106180.0,106170.0,0.28233183]
[1762823429494,0.41067,106180.0,106170.0,0.28233183]
[1762823430298,0.5048827,106180.0,106170.0,0.28233183]
[1762823430486,0.5153427,106180.0,106170.0,0.18811023]
[1762823430886,0.5153427,106180.0,106170.0,0.10804317]
[1762823433802,0.5153427,106180.0,106170.0,0.20226477]
[1762823434601,0.5153427,106180.0,106170.0,0.21496477]
[1762823434895,0.5048827,106180.0,106170.0,0.21496477]
[1762823435300,0.5048827,106180.0,106170.0,0.28233183]
[1762823441103,0.5048827,106180.0,106170.0,0.21496477]
[1762823442499,0.5048827,106180.0,106170.0,0.12074317]
[1762823442705,0.5153427,106180.0,106170.0,0.10804317]
[1762823444304,0.5153427,106180.0,106170.0,0.17541023]
[1762823444505,0.5153427,106180.0,106170.0,0.10804317]
[1762823445207,0.5153427,106180.0,106170.0,0.08504317]
[1762823445398,0.5153427,106180.0,106170.0,0.06396317]
[1762823445799,0.5153427,106180.0,106170.0,0.06176514]
[1762823446000,0.5153427,106180.0,106170.0,0.10584514]
[1762823446300,0.5153427,106180.0,106170.0,0.10804317]
[1762823446605,0.5153427,106180.0,106170.0,0.20226477]
[1762823446909,0.5153427,106180.0,106170.0,0.23264656]
[1762823447102,0.5153427,106180.0,106170.0,0.30001362]
[1762823448598,0.5153427,106180.0,106170.0,0.20579202]
[1762823449310,0.5153427,106180.0,106170.0,0.31313362]
[1762823450002,0.5153427,106180.0,106170.0,0.20579202]
[1762823453609,0.60648963,106180.0,106170.0,0.20579202]
[1762823455211,0.60648963,106180.0,106170.0,0.30001362]
[1762823455410,0.5153427,106180.0,106170.0,0.30001362]
[1762823455617,0.5153427,106180.0,106170.0,0.20579202]
[1762823457521,0.5153427,106180.0,106170.0,0.20575539]
[1762823458007,0.60648963,106180.0,106170.0,0.20575539]
[1762823458213,0.60648963,106180.0,106170.0,0.11460846]
[1762823458409,0.60648963,106180.0,106170.0,0.20575539]
[1762823460019,0.60648963,106180.0,106170.0,0.11460846]
[1762823460324,0.60648963,106180.0,106170.0,0.20575539]
[1762823460816,0.3678,106180.0,106170.0,0.4046146]
[1762823461121,0.3678,106180.0,106170.0,0.33729349]
[1762823461310,0.3678,106180.0,106170.0,0.45517771]
[1762823461718,0.007,106180.0,106170.0,0.45517771]
[1762823462311,0.02883,106180.0,106170.0,0.45517771]
[1762823462519,0.5071627,106180.0,106170.0,0.42133508]
[1762823462719,0.05215,106180.0,106170.0,0.42133508]
[1762823463218,0.007,106180.0,106170.0,0.42130952]
[1762823463419,0.05215,106180.0,106170.0,0.23901566]
[1762823463618,0.05215,106180.0,106170.0,0.42130952]
[1762823463818,0.007,106180.0,106170.0,0.33729349]
[1762823464019,0.007,106180.0,106170.0,0.42130954]
[1762823464320,0.007,106180.0,106170.0,0.42129314]
[1762823464819,0.00014177,106190.0,106180.0,0.05659]
[1762823465123,0.40595,106210.0,106200.0,0.150785]
[1762823465319,0.40595,106210.0,106200.0,0.40238778]
[1762823465720,0.04515,106210.0,106200.0,0.40238778]
[1762823465915,0.40595,106210.0,106200.0,0.40238778]
[1762823466425,0.3638,106210.0,106200.0,0.49353471]
[1762823466617,0.003,106210.0,106200.0,0.51037875]
[1762823466818,0.59942303,106210.0,106200.0,0.00219803]
[1762823467322,0.59642303,106210.0,106200.0,0.00219803]
[1762823467621,0.59742303,106210.0,106200.0,0.00219803]
[1762823468917,0.59642303,106210.0,106200.0,0.00219803]
[1762823469118,0.59842303,106210.0,106200.0,0.00219803]
[1762823469717,0.59642303,106210.0,106200.0,0.00219803]
[1762823469917,0.59742303,106210.0,106200.0,0.09334496]
[1762823470419,0.59742303,106210.0,106200.0,0.11434496]
[1762823470619,0.59742303,106210.0,106200.0,0.13643496]
[1762823472126,0.59742303,106210.0,106200.0,0.11434496]
[1762823472627,0.59742303,106210.0,106200.0,0.00219803]
[1762823472824,0.59742303,106210.0,106200.0,0.09334496]
[1762823473125,0.152295,106200.0,106190.0,0.00014177]
[1762823473318,0.69538886,106200.0,106190.0,0.00014177]
[1762823474026,1.05466886,106200.0,106190.0,0.00014177]
[1762823474728,0.1523327,106180.0,106170.0,0.20128106]
[1762823474926,0.96507963,106180.0,106170.0,0.20347909]
[1762823475227,0.96507963,106180.0,106170.0,0.13643496]
[1762823475628,0.96507963,106180.0,106170.0,0.09334496]
[1762823476029,0.97207963,106180.0,106170.0,0.09434496]
[1762823476633,0.96507963,106180.0,106170.0,0.09334496]
[1762823476831,0.96507963,106180.0,106170.0,0.09434496]
[1762823476832,0.96907963,106180.0,106170.0,0.09434496]
[1762823477532,0.96907963,106180.0,106170.0,0.00319803]
[1762823479634,0.96907963,106180.0,106170.0,0.11534496]
[1762823480936,0.96907963,106180.0,106170.0,0.13725496]
[1762823481336,0.96907963,106180.0,106170.0,0.00319803]
[1762823481634,0.96907963,106180.0,106170.0,0.11620496]
[1762823481829,0.96907963,106180.0,106170.0,0.13811496]
[1762823482032,1.06022656,106180.0,106170.0,0.00319803]
[1762823482337,1.41950656,106180.0,106170.0,0.001]
[1762823482927,1.32835963,106180.0,106170.0,0.001]
[1762823483334,1.32835963,106180.0,106170.0,0.00319803]
[1762823483533,1.32835963,106180.0,106170.0,0.09434496]
[1762823483726,1.32835963,106180.0,106170.0,0.00319803]
[1762823485935,1.32835963,106180.0,106170.0,0.02505803]
[1762823486336,1.32835963,106180.0,106170.0,0.11620496]
[1762823486838,1.32835963,106180.0,106170.0,0.02505803]
[1762823487936,1.32835963,106180.0,106170.0,0.11620496]
[1762823488436,1.32835963,106180.0,106170.0,0.23233656]
[1762823488837,1.32835963,106180.0,106170.0,0.13811496]
[1762823489335,1.32835963,106180.0,106170.0,0.09434496]
[1762823489539,1.32835963,106180.0,106170.0,0.00319803]
[1762823491733,1.41950656,106180.0,106170.0,0.00319803]
[1762823492432,1.32835963,106180.0,106170.0,0.00319803]
[1762823494126,1.32835963,106180.0,106170.0,0.02505803]
[1762823494825,1.32835963,106180.0,106170.0,0.11620496]
[1762823495028,1.32835963,106180.0,106170.0,0.13811496]
[1762823495830,1.32835963,106180.0,106170.0,0.04696803]
[1762823496031,1.32835963,106180.0,106170.0,0.13811496]
[1762823497634,1.13003,106180.0,106170.0,0.24618656]
[1762823497846,0.77075,106180.0,106170.0,0.24618656]
[1762823499235,0.77075,106180.0,106170.0,0.31323069]
[1762823499944,0.77075,106180.0,106170.0,0.24618656]
[1762823500333,0.77075,106180.0,106170.0,0.31323069]
[1762823501845,0.8649627,106180.0,106170.0,0.31323069]
[1762823502235,0.8649627,106180.0,106170.0,0.33014149]
[1762823502544,0.8649627,106180.0,106170.0,0.68942149]
[1762823502846,0.77075,106180.0,106170.0,0.68942149]
[1762823505146,0.7256,106180.0,106170.0,0.78056842]
[1762823505445,0.004,106180.0,106170.0,0.69661349]
[1762823505644,0.004,106180.0,106170.0,0.81449771]
[1762823505841,0.04767,106180.0,106170.0,0.63220385]
[1762823506042,0.004,106180.0,106170.0,1.17529771]
[1762823506242,0.004,106180.0,106170.0,1.25923885]
[1762823506446,0.004,106180.0,106170.0,1.14135463]
[1762823507550,0.00014177,106190.0,106180.0,0.1518327]
[1762823507741,0.00014177,106190.0,106180.0,0.33632459]
[1762823508245,0.02160177,106190.0,106180.0,0.33632459]
[1762823508840,0.00014177,106190.0,106180.0,0.27548825]
[1762823509041,0.00014177,106190.0,106180.0,0.72022939]
[1762823509246,0.00014177,106190.0,106180.0,0.83811361]
[1762823509646,0.00014177,106190.0,106180.0,0.63628825]
[1762823509853,0.00014177,106190.0,106180.0,0.63828825]
[1762823510052,0.00014177,106190.0,106180.0,0.27748825]
[1762823510255,0.00014177,106190.0,106180.0,0.36129092]
[1762823510447,0.02860177,106190.0,106180.0,0.36029092]
[1762823510654,0.05087177,106190.0,106180.0,0.36029092]
[1762823511052,0.02860177,106190.0,106180.0,0.36029092]
[1762823511253,0.05087177,106190.0,106180.0,0.36029092]
[1762823511653,0.05087177,106190.0,106180.0,0.50589092]
[1762823514554,0.14507557,106190.0,106180.0,0.44516216]
[1762823514756,0.41167177,106190.0,106180.0,0.50589092]
[1762823514956,0.05087177,106190.0,106180.0,0.50589092]
[1762823515752,0.05087177,106190.0,106180.0,0.42208825]
[1762823516857,0.05087177,106190.0,106180.0,0.78288825]
[1762823517058,0.00714177,106190.0,106180.0,0.78288825]
[1762823517753,0.00714177,106190.0,106180.0,0.86669092]
[1762823518258,0.00714177,106190.0,106180.0,0.50589092]
[1762823518558,0.00714177,106190.0,106180.0,0.42208825]
[1762823519061,0.00714177,106190.0,106180.0,0.4961887]
[1762823519657,0.02850177,106190.0,106180.0,0.4961887]
[1762823519960,0.02850177,106190.0,106180.0,0.57999137]
[1762823520366,0.02850177,106190.0,106180.0,0.4961887]
[1762823520757,0.02850177,106190.0,106180.0,0.8569887]
[1762823521063,0.02850177,106190.0,106180.0,0.4961887]
[1762823522861,0.00714177,106190.0,106180.0,0.4961887]
[1762823523062,0.00714177,106190.0,106180.0,0.8569887]
[1762823523260,0.00714177,106190.0,106180.0,0.94069246]
[1762823524766,0.00714177,106190.0,106180.0,0.57989246]
[1762823525355,0.00714177,106190.0,106180.0,0.94069246]
[1762823525956,0.00714177,106190.0,106180.0,1.17613246]
[1762823526354,0.00714177,106190.0,106180.0,1.09126122]
[1762823526549,0.00714177,106190.0,106180.0,1.03053246]
[1762823526761,0.40387,106210.0,106200.0,0.151995]
[1762823526961,0.40387,106210.0,106200.0,0.34263169]
[1762823527364,0.38216,106210.0,106200.0,0.34263169]
[1762823527561,0.40387,106210.0,106200.0,0.34263169]
[1762823527869,0.04307,106210.0,106200.0,0.34263169]
[1762823528765,0.04307,106210.0,106200.0,0.34563169]
[1762823529868,0.04307,106210.0,106200.0,0.28490293]
[1762823529869,0.4980561,106210.0,106200.0,0.28490293]
[1762823530362,0.4980561,106210.0,106200.0,0.29414766]
[1762823533070,0.40387,106210.0,106200.0,0.29414766]
[1762823533272,0.40387,106210.0,106200.0,0.22716652]
[1762823533463,0.40387,106210.0,106200.0,0.28789528]
[1762823534361,0.40387,106210.0,106200.0,0.37159904]
[1762823535064,0.4980561,106210.0,106200.0,0.37159904]
[1762823535569,0.4980561,106210.0,106200.0,0.31087028]
[1762823535770,0.4980561,106210.0,106200.0,0.37159904]
[1762823537067,0.4980561,106210.0,106200.0,0.31087028]
[1762823537372,0.40387,106210.0,106200.0,0.37159904]
[1762823537572,0.4980561,106210.0,106200.0,0.37159904]
[1762823538069,0.4980561,106210.0,106200.0,0.51719904]
[1762823538372,0.40387,106210.0,106200.0,0.51719904]
[1762823540181,0.40387,106210.0,106200.0,0.43349528]
[1762823541871,0.40387,106210.0,106200.0,0.50057732]
[1762823543070,0.4980561,106210.0,106200.0,0.50057732]
[1762823543264,0.5115061,106210.0,106200.0,0.48763732]
[1762823543467,0.5115061,106210.0,106200.0,0.3661798]
[1762823543880,0.5115061,106210.0,106200.0,0.44075856]
[1762823544074,0.3608,106210.0,106200.0,0.50148732]
[1762823544282,0.38263177,106220.0,106210.0,0.1519761]
[1762823544576,0.02183177,106220.0,106210.0,0.35933541]
[1762823544877,0.04437177,106220.0,106210.0,0.29860665]
[1762823545872,0.04437177,106220.0,106210.0,0.30160665]
[1762823547079,0.00014177,106220.0,106210.0,0.30160665]
[1762823547582,0.00014177,106220.0,106210.0,0.36233541]
[1762823547782,0.00014177,106220.0,106210.0,0.35933541]
[1762823548081,0.02183177,106220.0,106210.0,0.35933541]
[1762823548286,0.00014177,106220.0,106210.0,0.35933541]
[1762823548480,1e-08,106220.0,106210.0,0.35933541]
[1762823549076,1e-08,106220.0,106210.0,0.27563165]
[1762823549784,1e-08,106220.0,106210.0,0.42123165]
[1762823553181,1e-08,106220.0,106210.0,0.50493541]
[1762823554181,1e-08,106220.0,106210.0,0.42123165]
[1762823554383,1e-08,106220.0,106210.0,0.50495118]
[1762823554584,1e-08,106220.0,106210.0,0.86575118]
[1762823555391,1e-08,106220.0,106210.0,0.74429366]
[1762823555588,1e-08,106220.0,106210.0,0.50495118]
[1762823556285,0.02189001,106220.0,106210.0,0.50495118]
[1762823556485,0.04411001,106220.0,106210.0,0.50495118]
[1762823556691,1e-08,106220.0,106210.0,0.46101118]
[1762823559792,1e-08,106220.0,106210.0,0.82181118]
[1762823560995,1e-08,106220.0,106210.0,0.46101118]
[1762823561795,1e-08,106220.0,106210.0,0.40028242]
[1762823565193,0.15110721,106220.0,106210.0,0.37019366]
[1762823565403,0.57263597,106220.0,106210.0,0.27600756]
[1762823565599,0.57263597,106220.0,106210.0,0.19228803]
[1762823565794,0.51190721,106220.0,106210.0,0.19228803]
[1762823566098,0.51190721,106220.0,106210.0,0.41420567]
[1762823566303,0.51190721,106220.0,106210.0,0.34720289]
[1762823566594,0.51190721,106220.0,106210.0,0.25301679]
[1762823566789,0.51190721,106220.0,106210.0,0.32005184]
[1762823567391,0.51190721,106220.0,106210.0,0.09547308]
[1762823567592,0.57263597,106220.0,106210.0,0.09547308]
[1762823568102,0.57263597,106220.0,106210.0,0.07223308]
[1762823569301,0.51190721,106220.0,106210.0,0.07223308]
[1762823569488,0.51190721,106220.0,106210.0,0.21138918]
[1762823569997,0.51190721,106220.0,106210.0,0.11720308]
[1762823570199,0.51190721,106220.0,106210.0,0.27211794]
[1762823570903,0.60298964,106220.0,106210.0,0.30247161]
[1762823571601,0.60298964,106220.0,106210.0,0.20828551]
[1762823572102,0.60298964,106220.0,106210.0,0.30247161]
[1762823573000,0.60298964,106220.0,106210.0,0.21138918]
[1762823573203,0.60298964,106220.0,106210.0,0.30247161]
[1762823575903,0.60298964,106220.0,106210.0,0.20828551]
[1762823577501,0.51190721,106220.0,106210.0,0.20828551]
[1762823577701,0.60298964,106220.0,106210.0,0.20828551]
[1762823578599,0.51190721,106220.0,106210.0,0.20828551]
[1762823578903,0.60298964,106220.0,106210.0,0.18610551]
[1762823579105,0.60298964,106220.0,106210.0,0.20733551]
[1762823579403,0.60298964,106220.0,106210.0,0.30152161]
[1762823579798,0.51190721,106220.0,106210.0,0.30152161]
[1762823581303,0.51190721,106220.0,106210.0,0.31521161]
[1762823581598,0.51190721,106220.0,106210.0,0.30152161]
[1762823581804,0.60298964,106220.0,106210.0,0.30152161]
[1762823582805,0.51190721,106220.0,106210.0,0.30152161]
[1762823583509,0.41773001,106220.0,106210.0,0.31521161]
[1762823584208,0.51190721,106220.0,106210.0,0.31521161]
[1762823585101,0.51190721,106220.0,106210.0,0.30152161]
[1762823585809,0.51190721,106220.0,106210.0,0.31521161]
[1762823586710,0.51190721,106220.0,106210.0,0.30152161]
[1762823587209,0.51190721,106220.0,106210.0,0.31521161]
[1762823588713,0.49908721,106220.0,106210.0,0.31521161]
[1762823593019,0.51272721,106220.0,106210.0,0.21043918]
[1762823593313,0.49908721,106220.0,106210.0,0.31521161]
[1762823593514,0.40491001,106220.0,106210.0,0.31521161]
[1762823593718,0.40491001,106220.0,106210.0,0.24817656]
[1762823594015,0.49908721,106220.0,106210.0,0.33189609]
[1762823595116,0.49908721,106220.0,106210.0,0.24817656]
[1762823595312,0.49908721,106220.0,106210.0,0.33189609]
[1762823595518,0.40491001,106220.0,106210.0,0.69061609]
[1762823595719,0.49908721,106220.0,106210.0,0.69061609]
[1762823595913,0.40491001,106220.0,106210.0,0.69061609]
[1762823596310,0.40491001,106220.0,106210.0,0.78169852]
[1762823596517,0.38269001,106220.0,106210.0,0.78169852]
[1762823596720,0.38269001,106220.0,106210.0,0.92729852]
[1762823596920,0.40511001,106220.0,106210.0,0.92729852]
[1762823597608,0.40511001,106220.0,106210.0,0.91073414]
[1762823597918,0.40511001,106220.0,106210.0,0.92729852]
[1762823600821,0.04431001,106220.0,106210.0,0.92729852]
[1762823601021,0.40511001,106220.0,106210.0,0.92729852]
[1762823602016,0.40511001,106220.0,106210.0,0.84357899]
[1762823602412,0.04431001,106220.0,106210.0,0.84357899]
[1762823602813,1e-08,106220.0,106210.0,0.79955899]
[1762823603320,1e-08,106220.0,106210.0,1.16035899]
[1762823603519,1e-08,106220.0,106210.0,1.47943852]
[1762823603722,0.40662,106240.0,106230.0,0.1520384]
[1762823603916,0.40662,106240.0,106230.0,0.67103835]
[1762823605924,0.40662,106240.0,106230.0,0.67303835]
[1762823606424,0.40662,106240.0,106230.0,0.76412078]
[1762823607117,0.5007795,106240.0,106230.0,0.76412078]
[1762823607317,0.5007795,106240.0,106230.0,0.67303835]
[1762823608816,0.40662,106240.0,106230.0,0.67303835]
[1762823610328,0.5007795,106240.0,106230.0,0.67303835]
[1762823612726,0.5007795,106240.0,106230.0,0.57886995]
[1762823613030,0.5007795,106240.0,106230.0,0.67303835]
[1762823614229,0.40662,106240.0,106230.0,0.67303835]
[1762823616133,0.5007795,106240.0,106230.0,0.67303835]
[1762823616328,0.40662,106240.0,106230.0,0.60595886]
[1762823616736,0.5007795,106240.0,106230.0,0.60595886]
[1762823619136,0.5007795,106240.0,106230.0,0.67303835]
[1762823620137,0.40662,106240.0,106230.0,0.67303835]
[1762823620338,0.40662,106240.0,106230.0,0.76412078]
[1762823621038,0.40662,106240.0,106230.0,0.67303835]
[1762823621233,0.40662,106240.0,106230.0,0.69704129]
[1762823621433,0.40662,106240.0,106230.0,0.84264129]
[1762823622938,0.40662,106240.0,106230.0,0.90972078]
[1762823623340,0.3608,106240.0,106230.0,0.86515078]
[1762823623540,0.40662,106240.0,106230.0,0.90972078]
[1762823628646,0.5007795,106240.0,106230.0,0.90972078]
[1762823629335,0.5007795,106240.0,106230.0,0.81863835]
[1762823630346,0.40662,106240.0,106230.0,0.90972078]
[1762823630846,0.40662,106240.0,106230.0,0.78823779]
[1762823631449,0.40662,106240.0,106230.0,0.7211583]
[1762823631945,0.40662,106240.0,106230.0,0.65940766]
[1762823633141,0.5007795,106240.0,106230.0,0.65940766]
[1762823634853,0.40662,106240.0,106230.0,0.65940766]
[1762823635851,0.3608,106240.0,106230.0,0.72008953]
[1762823636150,0.38303,106240.0,106230.0,0.72008953]
[1762823636545,0.3608,106240.0,106230.0,0.72008953]
[1762823636748,0.38303,106240.0,106230.0,0.72008953]
[1762823637743,0.38303,106240.0,106230.0,0.86568953]
[1762823638140,0.02223,106240.0,106230.0,0.86568953]
[1762823639248,0.45509437,106250.0,106240.0,0.1526395]
[1762823639249,0.49858437,106250.0,106240.0,0.1526395]
[1762823639450,0.49858437,106250.0,106240.0,0.2490868]
[1762823639748,0.51246437,106250.0,106240.0,0.22188256]
[1762823639937,0.51246437,106250.0,106240.0,0.3432463]
[1762823640344,0.51246437,106250.0,106240.0,0.28256443]
[1762823640653,0.49858437,106250.0,106240.0,0.18940493]
[1762823640843,0.49858437,106250.0,106240.0,0.28356443]
[1762823641150,0.49858437,106250.0,106240.0,0.3442463]
[1762823641746,0.51246437,106250.0,106240.0,0.3442463]
[1762823642551,0.51246437,106250.0,106240.0,0.2500868]
[1762823642846,0.51246437,106250.0,106240.0,0.3442463]
[1762823645154,0.51246437,106250.0,106240.0,0.2500868]
[1762823645655,0.51246437,106250.0,106240.0,0.15294493]
[1762823646151,0.51246437,106250.0,106240.0,0.17569493]
[1762823648956,0.15166437,106250.0,106240.0,0.09226306]
[1762823649261,0.93394624,106250.0,106240.0,0.42856306]
[1762823649754,0.93394624,106250.0,106240.0,0.07024306]
[1762823650558,0.93394624,106250.0,106240.0,0.11501306]
[1762823650756,0.87326437,106250.0,106240.0,0.11501306]
[1762823650954,0.87326437,106250.0,106240.0,0.17569493]
[1762823651358,0.87326437,106250.0,106240.0,0.1086499]
[1762823651752,1.23154437,106250.0,106240.0,0.1086499]
[1762823652254,1.23154437,106250.0,106240.0,0.0858999]
[1762823652452,1.23154437,106250.0,106240.0,0.0638799]
[1762823652959,1.23154437,106250.0,106240.0,0.0858999]
[1762823653258,1.23154437,106250.0,106240.0,0.0638799]
[1762823653656,1.23154437,106250.0,106240.0,0.0858999]
[1762823657259,1.23154437,106250.0,106240.0,0.2028094]
[1762823657558,1.23154437,106250.0,106240.0,0.26349127]
[1762823657949,1.23154437,106250.0,106240.0,0.2028094]
[1762823658552,1.23150437,106250.0,106240.0,0.27720127]
[1762823658858,1.23150437,106250.0,106240.0,0.18304177]
[1762823659162,1.23150437,106250.0,106240.0,0.16933177]
[1762823659363,1.23150437,106250.0,106240.0,0.1086499]
[1762823660463,0.87326437,106250.0,106240.0,0.1086499]
[1762823660662,0.87326437,106250.0,106240.0,0.02521803]
[1762823660862,0.87326437,106250.0,106240.0,0.17441493]
[1762823662261,0.93394624,106250.0,106240.0,0.06804503]
[1762823662454,0.1524883,106230.0,106220.0,0.10568113]
[1762823662655,1.29297017,106230.0,106220.0,0.06724319]
[1762823663059,1.29297017,106230.0,106220.0,0.00014177]
[1762823663761,1.29297017,106230.0,106220.0,0.00314177]
[1762823666962,1.29297017,106230.0,106220.0,1.77e-06]
[1762823668573,0.1500372,106220.0,106210.0,0.00014177]
[1762823668773,0.57151907,106220.0,106210.0,0.00014177]
[1762823669763,0.57351907,106220.0,106210.0,0.00014177]
[1762823670160,0.40782,106220.0,106210.0,0.21337767]
[1762823670361,0.40782,106220.0,106210.0,0.27405954]
[1762823670565,0.002,106220.0,106210.0,0.27405954]
[1762823670774,0.002,106220.0,106210.0,0.70196096]
[1762823671063,0.36094177,106230.0,106220.0,0.1503472]
[1762823671262,0.00014177,106230.0,106220.0,0.6990206]